bitfinex-derivatives/quotes_ETHF0:USTF0_20250817
["timestamp","ask_amount","ask_price","bid_price","bid_amount"]
[1755455402536,1.4509,4518.4,4518.3,21.9955]
[1755455402736,0.6284,4518.3,4517.7,0.8768]
[1755455403039,1.4509,4517.8,4517.7,1.4435]
[1755455403233,1.4509,4517.8,4517.7,21.9925]
[1755455403634,1.4509,4517.8,4517.7,20.549]
[1755455403936,1.4509,4517.8,4517.7,20.7066]
[1755455404137,1.4509,4517.8,4517.7,20.9619]
[1755455404440,1.4509,4517.8,4517.7,21.9925]
[1755455404734,3.2078,4518.0,4517.7,20.7066]
[1755455405038,3.6122,4518.0,4517.9,0.6605]
[1755455405234,4.4116,4518.0,4517.9,1.4435]
[1755455405635,4.6587,4518.0,4517.9,0.1576]
[1755455405833,4.6587,4518.0,4517.9,0.4129]
[1755455406437,4.6587,4518.0,4517.7,20.549]
[1755455406641,3.7832,4518.0,4517.7,20.549]
[1755455406939,1.4509,4517.9,4517.8,1.4435]
[1755455407535,1.4509,4517.9,4517.8,0.559]
[1755455407737,1.0734,4517.5,4517.4,0.2553]
[1755455408040,1.4509,4517.5,4517.4,20.9579]
[1755455408239,1.4509,4517.5,4517.2,0.6215]
[1755455408439,0.5754,4517.5,4517.4,20.544]
[1755455408635,3.2078,4518.0,4517.5,0.4952]
[1755455408835,3.7832,4518.0,4517.9,1.4435]
[1755455409036,4.6587,4518.0,4517.9,1.4435]
[1755455409238,4.6587,4518.0,4517.9,0.822]
[1755455409540,4.6587,4518.0,4517.7,20.543]
[1755455409741,0.6284,4517.9,4517.8,0.2553]
[1755455409943,1.2038,4517.9,4517.8,0.4129]
[1755455410543,1.4509,4517.9,4517.8,0.4129]
[1755455410843,1.2038,4517.9,4517.8,0.1576]
[1755455411036,0.785,4517.8,4517.7,20.9482]
[1755455411347,1.4509,4517.8,4516.8,3.2078]
[1755455411643,0.5754,4517.1,4517.0,1.4435]
[1755455412235,0.5754,4517.1,4517.0,0.1576]
[1755455412442,0.5754,4517.1,4517.0,21.6029]
[1755455412746,0.5754,4517.1,4517.0,21.9845]
[1755455413043,1.4509,4517.1,4517.0,21.9845]
[1755455414649,1.4509,4517.1,4516.6,0.2553]
[1755455414948,0.5754,4516.9,4516.8,0.822]
[1755455415145,1.4509,4516.9,4516.8,1.4435]
[1755455415347,1.4509,4516.9,4516.8,0.822]
[1755455415848,1.4509,4516.9,4516.8,0.4129]
[1755455417045,1.4509,4516.9,4516.5,0.4952]
[1755455417046,0.5754,4516.9,4516.5,0.4952]
[1755455417251,1.4509,4516.6,4516.5,0.2553]
[1755455417550,1.0359,4516.5,4516.4,20.539]
[1755455417739,1.0359,4516.5,4515.7,3.2078]
[1755455417740,0.861,4516.4,4515.7,3.2078]
[1755455417944,3.2078,4516.0,4515.4,0.2387]
[1755455418143,0.5679,4515.9,4515.8,20.538]
[1755455418341,0.5679,4515.9,4515.8,21.6931]
[1755455418542,1.4289,4515.9,4515.8,21.9392]
[1755455419747,1.4289,4515.9,4515.8,21.3387]
[1755455420346,0.4059,4515.4,4515.3,0.8007]
[1755455420555,1.4289,4515.4,4515.3,21.9402]
[1755455421052,1.1837,4515.4,4515.3,21.9402]
[1755455421253,0.5679,4515.4,4515.3,21.9402]
[1755455421454,0.4059,4515.4,4515.3,21.9402]
[1755455421948,0.5679,4515.4,4515.3,21.9402]
[1755455422253,1.1837,4515.4,4515.3,21.9402]
[1755455422654,0.4059,4515.4,4515.3,21.9402]
[1755455423152,3.8236,4516.5,4515.9,1.4012]
[1755455423454,4.0209,4516.5,4516.4,0.4048]
[1755455423850,4.6367,4516.5,4516.4,0.4048]
[1755455424550,4.6367,4516.5,4516.4,0.1661]
[1755455424753,3.7757,4516.5,4516.2,20.539]
[1755455424947,1.4289,4516.4,4516.3,0.2387]
[1755455425553,1.4289,4516.4,4516.3,0.4048]
[1755455426055,1.4289,4516.4,4516.3,1.4012]
[1755455426954,1.4289,4516.3,4516.2,20.539]
[1755455427251,1.4289,4516.3,4515.8,0.2387]
[1755455427457,1.0732,4516.0,4515.9,21.5848]
[1755455427652,4.6367,4516.0,4515.9,21.9392]
[1755455427850,0.2601,4515.9,4515.4,0.5931]
[1755455428148,1.4289,4515.5,4515.4,1.4012]
[1755455428358,1.1837,4515.5,4515.4,21.9382]
[1755455429259,0.4059,4515.5,4515.4,21.9382]
[1755455429557,0.5679,4515.5,4515.4,21.9382]
[1755455429760,1.1837,4515.5,4515.4,21.9382]
[1755455430756,1.451,4515.2,4515.1,0.09966446]
[1755455430953,1.451,4515.2,4514.1,0.5931]
[1755455431156,0.5679,4514.2,4514.1,1.1625]
[1755455431456,1.1837,4514.2,4514.1,1.1625]
[1755455431861,1.1837,4514.2,4514.1,1.4012]
[1755455434763,1.1837,4514.2,4513.5,13.43894]
[1755455434764,3.7757,4515.0,4514.9,0.562]
[1755455435072,4.3915,4515.0,4514.9,1.4012]
[1755455435266,0.3557,4514.7,4513.2,0.3544]
[1755455435462,1.1837,4513.4,4513.3,1.4012]
[1755455435862,1.1837,4513.4,4513.3,0.8007]
[1755455436063,1.4289,4513.4,4513.3,0.8007]
[1755455437059,1.4289,4513.4,4512.6,20.537]
[1755455437060,1.4289,4512.9,4512.8,1.1551]
[1755455437265,1.4289,4512.9,4512.8,1.4012]
[1755455437856,1.1837,4512.9,4512.8,1.4012]
[1755455438963,0.5679,4511.7,4511.6,0.9164]
[1755455439162,1.1837,4511.7,4511.6,0.9164]
[1755455439363,1.4289,4511.7,4511.6,0.9164]
[1755455439562,1.4289,4511.7,4511.6,1.4012]
[1755455441564,0.59,4511.7,4511.2,3.2078]
[1755455441764,0.9236,4510.6,4510.5,9.6332]
[1755455441965,3.9875,4511.0,4510.9,0.562]
[1755455442165,4.3915,4511.0,4510.9,1.4012]
[1755455442361,0.6158,4510.9,4509.3,0.44325]
[1755455442569,0.2601,4510.4,4510.0,20.611]
[1755455442770,1.1837,4510.4,4510.3,1.1625]
[1755455443068,1.4289,4510.4,4510.3,1.1551]
[1755455443264,1.4289,4510.4,4510.2,20.611]
[1755455443467,1.0249,4510.2,4510.1,0.8007]
[1755455443762,0.2601,4511.4,4510.9,1.4012]
[1755455443967,0.6158,4511.6,4511.3,0.8392]
[1755455444162,0.9236,4511.4,4511.3,22.0322]
[1755455444359,1.1837,4511.4,4511.3,22.0322]
[1755455444765,1.1837,4511.4,4511.2,20.633]
[1755455445066,1.4289,4511.3,4511.2,20.7991]
[1755455445270,1.1837,4511.3,4511.2,22.0342]
[1755455445760,0.5679,4511.3,4511.2,22.0342]
[1755455445965,0.4059,4511.3,4511.2,22.0342]
[1755455446158,3.9875,4511.6,4511.5,0.1597]
[1755455446369,4.2295,4511.6,4511.5,1.4012]
[1755455446564,0.861,4511.5,4510.2,0.8392]
[1755455446868,3.7757,4511.1,4511.0,0.562]
[1755455447068,4.0209,4511.1,4511.0,0.8007]
[1755455447469,3.7757,4511.1,4511.0,1.4012]
[1755455447667,3.2078,4511.1,4511.0,1.4012]
[1755455448675,3.6338,4511.1,4511.0,1.4012]
[1755455448868,4.4128,4511.1,4511.0,1.4012]
[1755455449078,4.6633,4511.1,4511.0,21.5487]
[1755455449275,3.2078,4511.1,4511.0,22.1955]
[1755455449478,3.6338,4511.1,4511.0,22.1955]
[1755455449976,3.2078,4511.1,4511.0,22.1955]
[1755455450177,3.6338,4511.1,4511.0,22.1955]
[1755455450472,3.2078,4511.1,4511.0,22.1955]
[1755455450872,1.205,4512.0,4511.9,0.5686]
[1755455451072,1.205,4512.0,4511.9,1.4587]
[1755455451377,1.4555,4512.0,4511.9,22.1957]
[1755455451572,1.205,4512.0,4511.9,1.4587]
[1755455451773,1.205,4512.0,4511.9,22.1947]
[1755455452774,3.2078,4512.1,4512.0,1.3014]
[1755455453081,1.205,4512.5,4512.4,0.5686]
[1755455453273,1.205,4512.5,4512.4,1.4587]
[1755455453579,3.2078,4512.9,4511.4,3.2078]
[1755455453779,3.2078,4512.4,4511.6,0.8901]
[1755455453972,0.426,4511.8,4511.7,1.4587]
[1755455454275,1.0344,4512.5,4512.4,0.3986]
[1755455454582,1.0344,4512.5,4512.4,22.1907]
[1755455454777,3.2078,4512.9,4512.4,22.1907]
[1755455454778,3.8162,4512.9,4512.4,22.1907]
[1755455455085,0.426,4512.8,4512.7,1.4587]
[1755455455374,1.205,4512.8,4512.7,1.4587]
[1755455456279,1.80987693,4512.8,4512.7,1.4587]
[1755455460673,0.60487693,4512.8,4512.7,1.4587]
[1755455460874,0.60487693,4512.8,4512.7,4.90162]
[1755455461075,3.2078,4513.5,4513.4,1.4483]
[1755455461274,3.2078,4513.5,4513.4,22.1433]
[1755455463275,0.3717,4513.9,4513.4,22.1433]
[1755455463474,0.5966,4513.6,4513.5,1.4483]
[1755455463674,0.9683,4513.6,4513.5,1.4483]
[1755455465087,0.5966,4513.6,4513.5,1.4483]
[1755455465583,0.8589,4513.9,4513.6,0.8797]
[1755455465779,1.4555,4513.9,4513.8,1.205]
[1755455465986,0.5966,4513.9,4513.8,22.1243]
[1755455466379,0.9683,4514.6,4514.5,0.5686]
[1755455466576,0.9683,4514.6,4514.5,22.1243]
[1755455466780,1.205,4514.6,4514.5,22.1243]
[1755455467084,1.4555,4514.6,4514.5,20.8323]
[1755455467687,1.4555,4514.6,4514.5,0.1573]
[1755455467878,1.4555,4514.6,4514.5,20.669]
[1755455469683,1.2188,4514.6,4514.5,20.9963]
[1755455469882,1.4555,4514.6,4514.5,21.2528]
[1755455471383,3.2078,4514.7,4514.5,22.1173]
[1755455471587,3.2078,4514.7,4514.5,21.2376]
[1755455471882,4.2916,4514.7,4514.6,1.4483]
[1755455472187,4.6633,4514.7,4514.6,1.4483]
[1755455472386,4.6633,4514.7,4514.6,21.2278]
[1755455472888,4.6633,4514.7,4514.6,22.0923]
[1755455478585,4.1761,4514.7,4514.6,22.0923]
[1755455479377,3.8044,4514.7,4514.6,22.0923]
[1755455479581,0.5966,4514.7,4514.6,22.0923]
[1755455480286,0.984,4514.7,4514.6,22.0923]
[1755455480584,0.4969,4515.0,4514.6,22.0923]
[1755455480585,4.6828,4515.2,4515.1,1.4197]
[1755455480783,4.6828,4515.2,4515.1,22.0157]
[1755455483694,3.2078,4515.2,4515.1,22.0157]
[1755455483988,1.1451,4516.2,4516.1,0.568]
[1755455484192,2.18154186,4516.2,4516.1,22.0037]
[1755455484388,1.575,4516.2,4516.1,22.0037]
[1755455484790,0.3488,4516.2,4516.1,22.0037]
[1755455484996,1.3181,4516.2,4516.1,22.0037]
[1755455485297,1.575,4516.2,4516.1,22.0037]
[1755455485695,1.1451,4516.2,4516.1,22.0037]
[1755455485889,1.575,4516.2,4516.1,22.0037]
[1755455487691,1.0781,4516.2,4516.1,22.0037]
[1755455487893,1.0781,4516.2,4516.1,1.4197]
[1755455488092,1.575,4516.2,4516.1,21.9947]
[1755455489898,1.575,4516.2,4516.1,21.9757]
[1755455494101,1.575,4516.2,4515.5,0.4919]
[1755455494294,0.6443,4515.5,4515.3,3.6997]
[1755455494598,1.475,4515.4,4515.3,0.8125]
[1755455494901,0.5907,4515.1,4515.0,1.4197]
[1755455495109,1.475,4515.1,4515.0,1.4197]
[1755455495304,1.475,4515.1,4515.0,21.9717]
[1755455496508,0.5907,4515.1,4515.0,21.9717]
[1755455496708,1.475,4515.1,4515.0,21.9717]
[1755455497203,0.5907,4515.1,4515.0,21.9717]
[1755455498610,0.3874,4515.3,4515.0,21.12]
[1755455498805,1.475,4515.6,4515.5,1.0599]
[1755455499002,1.475,4515.6,4515.5,21.9717]
[1755455500008,1.475,4515.6,4515.5,20.8726]
[1755455500203,0.5907,4514.9,4514.8,0.9278]
[1755455500511,0.9781,4514.9,4514.8,21.9717]
[1755455500713,0.5907,4514.9,4514.8,21.9717]
[1755455501310,0.5907,4514.9,4514.8,21.12]
[1755455501509,1.475,4514.9,4514.8,21.12]
[1755455501803,1.475,4514.9,4514.8,21.6119]
[1755455502002,1.475,4514.9,4514.8,21.9717]
[1755455502409,1.475,4514.9,4514.8,1.4197]
[1755455502597,1.475,4514.9,4514.8,21.9717]
[1755455505814,3.5952,4515.2,4514.8,21.9717]
[1755455506012,3.5952,4515.2,4515.1,1.4197]
[1755455506013,4.0129,4515.2,4515.1,1.4197]
[1755455506307,4.6828,4515.2,4515.1,21.6119]
[1755455506513,4.6828,4515.2,4515.1,20.8726]
[1755455506809,4.6828,4515.2,4515.1,20.7136]
[1755455507310,4.6828,4515.2,4515.1,20.8726]
[1755455507511,4.6828,4515.2,4515.1,21.9717]
[1755455508414,4.6828,4515.2,4515.1,20.552]
[1755455509815,4.6828,4515.2,4515.1,21.7384]
[1755455510312,4.6828,4515.2,4515.1,21.9912]
[1755455513814,0.5877,4514.5,4514.4,0.4803]
[1755455514011,1.4445,4514.5,4514.4,21.9892]
[1755455515305,0.6046,4514.8,4514.4,21.7499]
[1755455515507,0.5877,4514.6,4514.5,1.4392]
[1755455515713,1.4445,4514.6,4514.5,1.4392]
[1755455520723,0.9492,4514.6,4514.5,1.4392]
[1755455521323,1.4445,4514.6,4514.5,1.4392]
[1755455525521,0.9492,4514.6,4514.5,1.4392]
[1755455525716,3.2078,4515.2,4514.5,0.5815]
[1755455525916,3.2078,4515.2,4515.1,1.4392]
[1755455526123,3.2078,4515.2,4515.1,21.9862]
[1755455526930,3.8955,4516.2,4516.1,0.5815]
[1755455527221,4.7523,4516.2,4516.1,21.9862]
[1755455531431,3.3078,4516.2,4516.1,21.9862]
[1755455537433,0.1,4516.2,4516.1,21.9862]
[1755455541136,0.1,4516.2,4516.1,25.194]
[1755455546039,0.4833,4516.2,4516.1,25.194]
[1755455547244,0.1,4516.2,4516.1,25.194]
[1755455549547,0.1,4516.2,4516.1,24.8166]
[1755455549749,1.5542,4516.2,4516.1,24.5894]
[1755455550047,1.5542,4516.2,4516.1,24.0835]
[1755455550545,1.5542,4516.2,4516.1,24.3369]
[1755455550746,1.5542,4516.2,4516.1,24.9485]
[1755455551248,1.5542,4516.2,4516.1,24.5894]
[1755455551449,1.5542,4516.2,4516.1,21.3816]
[1755455552243,1.5542,4516.2,4516.1,21.9795]
[1755455553144,1.5542,4516.2,4516.1,21.3816]
[1755455553340,1.5542,4516.2,4516.1,21.9795]
[1755455559350,1.5542,4516.2,4516.1,21.7407]
[1755455559646,1.5763,4516.2,4516.1,20.547]
[1755455562844,1.76429384,4516.2,4516.1,19.3594]
[1755455564647,2.37836475,4516.2,4516.1,19.3594]
[1755455564848,1.99506475,4516.2,4515.2,0.5059]
[1755455565052,0.18792665,4516.1,4515.3,21.2865]
[1755455565253,0.3246,4515.4,4515.3,21.4597]
[1755455565453,0.8349,4515.4,4515.3,21.9656]
[1755455573666,0.3665,4515.3,4513.7,0.238]
[1755455573867,0.8098,4514.8,4513.9,0.238]
[1755455574161,0.6218,4514.7,4514.0,0.2429]
[1755455574363,0.3986,4514.2,4514.1,0.791]
[1755455574558,0.9531,4514.2,4514.1,1.0339]
[1755455575663,0.9531,4514.2,4514.1,1.3943]
[1755455576465,1.1144,4514.2,4514.1,1.3943]
[1755455576866,1.3697,4514.2,4514.1,1.3943]
[1755455578768,1.1144,4514.2,4514.1,1.3943]
[1755455581468,1.3697,4514.2,4514.1,1.3943]
[1755455582170,1.1144,4514.2,4514.1,1.3943]
[1755455583367,1.3697,4514.2,4514.1,1.3943]
[1755455584567,1.3697,4514.2,4514.1,0.3974]
[1755455584764,0.1579,4513.9,4513.8,20.512]
[1755455585068,4.5775,4513.9,4513.8,20.512]
[1755455585575,0.5599,4513.6,4513.5,0.2429]
[1755455585772,0.1613,4513.0,4512.9,0.5548]
[1755455586077,1.1144,4513.0,4512.9,21.9103]
[1755455587175,1.3697,4513.0,4512.9,21.9103]
[1755455589174,0.188,4513.3,4512.9,21.9103]
[1755455589379,1.1144,4513.5,4513.4,1.3943]
[1755455589575,1.1144,4513.5,4513.4,21.9113]
[1755455589778,0.5599,4513.6,4513.5,1.3943]
[1755455589974,1.3697,4513.6,4513.5,1.3943]
[1755455592483,0.8152,4513.6,4513.5,0.4809]
[1755455592679,0.8152,4513.6,4513.5,0.6403]
[1755455592987,1.3697,4513.6,4513.5,0.6403]
[1755455593572,1.3697,4513.6,4513.5,1.1581]
[1755455595584,1.3697,4513.6,4513.5,0.7977]
[1755455598288,1.3697,4513.6,4513.4,20.517]
[1755455598583,0.5599,4513.6,4513.4,0.2396]
[1755455598787,0.582,4513.6,4512.8,0.2396]
[1755455598980,0.5765,4513.0,4512.9,20.9992]
[1755455599185,1.38,4513.0,4512.9,20.9992]
[1755455599390,1.38,4513.0,4512.9,20.517]
[1755455599688,0.4045,4512.8,4512.7,1.4412]
[1755455599883,1.1446,4512.8,4512.7,1.4412]
[1755455600281,3.2078,4513.1,4512.8,0.8582]
[1755455600592,4.5878,4513.1,4513.0,1.4412]
[1755455601483,4.5878,4513.1,4513.0,1.1879]
[1755455601690,4.5878,4513.1,4513.0,0.2426]
[1755455601882,4.5878,4513.1,4513.0,0.4822]
[1755455603191,4.5878,4513.1,4513.0,1.4412]
[1755455604092,4.5878,4513.1,4513.0,1.0652]
[1755455604292,4.7751523,4513.1,4513.0,0.2426]
[1755455604593,0.8039,4513.0,4512.8,0.4822]
[1755455604795,1.0003,4512.9,4512.8,1.0652]
[1755455604993,1.3804,4512.9,4512.8,1.4412]
[1755455607494,1.145,4512.9,4512.8,1.4412]
[1755455608289,0.7889,4513.0,4512.9,1.4412]
[1755455608490,1.145,4513.0,4512.6,20.517]
[1755455608693,1.3804,4512.9,4512.8,0.8119]
[1755455608886,1.3804,4512.9,4512.8,1.4412]
[1755455610987,3.2078,4513.1,4512.8,0.959]
[1755455611195,3.9967,4513.1,4513.0,1.4412]
[1755455611495,5.38344891,4513.1,4513.0,1.4412]
[1755455611694,4.77557451,4513.1,4513.0,1.4412]
[1755455612398,5.38360181,4513.1,4513.0,1.4412]
[1755455613103,4.54017451,4513.1,4513.0,1.4412]
[1755455613395,3.39517451,4513.1,4513.0,21.9562]
[1755455613599,3.2078,4513.1,4513.0,21.9562]
[1755455613896,3.2078,4513.6,4513.5,1.4412]
[1755455614093,3.2078,4513.6,4513.5,21.9562]
[1755455615090,3.39549711,4513.6,4513.5,21.9562]
[1755455615298,3.2078,4513.6,4513.5,21.9562]
[1755455618803,3.2078,4513.6,4513.5,1.4412]
[1755455619002,4.3528,4513.6,4513.5,21.9532]
[1755455619198,1.145,4513.2,4513.1,20.7546]
[1755455619396,0.7362,4513.2,4513.1,21.9532]
[1755455619597,0.3801,4513.2,4513.1,21.9532]
[1755455619795,3.6316,4513.6,4513.1,21.9532]
[1755455619796,3.2078,4513.6,4513.1,21.095]
[1755455620004,0.7649,4513.5,4513.4,0.583]
[1755455620204,0.7649,4513.5,4513.4,21.9532]
[1755455620705,1.145,4513.5,4513.4,21.9532]
[1755455621200,0.9566,4513.5,4513.4,21.9532]
[1755455621596,3.2078,4513.6,4513.4,21.9532]
[1755455621804,4.3528,4513.6,4513.5,1.4412]
[1755455622002,4.5882,4513.6,4513.5,0.2426]
[1755455622404,4.5882,4513.6,4513.5,0.4822]
[1755455622605,4.5882,4513.6,4513.5,0.2426]
[1755455624603,4.5882,4513.6,4513.5,0.8119]
[1755455624809,4.5882,4513.6,4513.5,1.0652]
[1755455625108,4.5882,4513.6,4513.5,1.4412]
[1755455626409,3.2078,4513.6,4513.5,1.2016]
[1755455626603,3.2078,4513.6,4513.5,21.9492]
[1755455626800,3.2078,4514.1,4513.5,23.9295]
[1755455627006,3.4432,4514.8,4514.7,0.3297]
[1755455627310,3.6166,4514.8,4514.7,21.3199]
[1755455627500,4.3998,4514.8,4514.7,21.3199]
[1755455629107,4.6428,4514.8,4514.7,21.3199]
[1755455629607,3.852,4514.8,4514.7,21.3199]
[1755455630203,4.2327,4514.8,4514.7,21.3199]
[1755455630915,1.1876,4514.8,4514.7,21.3199]
[1755455631104,1.4306,4514.8,4514.7,21.3199]
[1755455634409,1.4306,4514.8,4514.7,21.0773]
[1755455636107,1.4306,4514.8,4514.0,3.5444]
[1755455636108,1.2092,4514.1,4514.0,3.5444]
[1755455636312,1.4608,4514.1,4514.0,24.2909]
[1755455637208,1.4608,4514.1,4514.0,23.7058]
[1755455637410,0.8285,4513.7,4513.6,20.498]
[1755455637617,1.4608,4513.7,4513.6,20.497]
[1755455638112,1.4608,4513.7,4513.6,20.9148]
[1755455638315,1.4608,4513.7,4513.6,20.6663]
[1755455638711,1.4608,4513.7,4513.6,20.9148]
[1755455639014,1.4608,4513.7,4513.6,21.0821]
[1755455640716,4.6686,4513.7,4513.6,20.9148]
[1755455641014,4.6686,4513.7,4513.6,20.6663]
[1755455641710,4.6686,4513.7,4513.6,20.497]
[1755455643316,4.6686,4513.7,4513.6,21.0821]
[1755455644119,3.2078,4513.7,4513.6,21.333]
[1755455644614,3.3776,4513.7,4513.6,21.333]
[1755455644819,4.6686,4513.7,4513.6,21.0821]
[1755455645517,4.6686,4513.7,4513.6,21.333]
[1755455645718,4.6686,4513.7,4513.6,21.0821]
[1755455646520,4.6686,4513.7,4513.6,21.333]
[1755455648216,4.4256,4513.7,4513.6,21.333]
[1755455648919,4.6686,4513.7,4513.6,21.0821]
[1755455650525,4.6686,4513.7,4513.6,0.5851]
[1755455651914,3.4594,4513.7,4513.6,0.5851]
[1755455652120,3.4594,4513.7,4513.6,0.836]
[1755455652318,4.2629,4513.7,4513.6,0.836]
[1755455652527,4.6686,4513.7,4513.6,0.836]
[1755455661635,4.6808,4513.7,4513.5,20.492]
[1755455661839,0.5804,4513.6,4512.8,0.2479]
[1755455662037,3.2078,4513.7,4512.6,3.2078]
[1755455662038,0.9534,4513.0,4512.9,21.3164]
[1755455662336,0.2584,4513.3,4513.0,0.2479]
[1755455662543,0.2584,4513.3,4513.2,0.8324]
[1755455662940,1.4605,4513.6,4513.5,0.42]
[1755455663242,1.4605,4513.6,4513.5,0.5845]
[1755455666540,1.4605,4513.6,4513.5,0.42]
[1755455666840,1.4605,4513.6,4513.5,0.5845]
[1755455668538,1.0343,4513.5,4513.4,0.326]
[1755455668738,1.0343,4513.5,4513.4,0.8324]
[1755455669641,1.4605,4513.5,4513.4,0.5845]
[1755455673344,1.4605,4513.5,4513.1,0.2585]
[1755455673546,1.0343,4513.0,4512.9,21.0579]
[1755455674050,0.2584,4513.0,4512.9,21.3164]
[1755455674547,0.2584,4513.2,4512.9,20.81]
[1755455674748,1.0343,4513.3,4513.2,0.8324]
[1755455675247,1.4605,4513.3,4513.2,0.8324]
[1755455676450,3.2078,4513.7,4513.2,0.5845]
[1755455676650,4.4131,4513.7,4513.6,0.326]
[1755455676949,4.6683,4513.7,4513.6,0.5845]
[1755455678547,3.8756,4513.7,4513.6,0.5845]
[1755455678850,4.2421,4513.7,4513.6,0.8324]
[1755455679051,3.2078,4513.7,4513.6,0.5845]
[1755455679252,3.7181,4513.7,4513.6,0.8324]
[1755455679452,4.2421,4513.7,4513.6,0.8324]
[1755455679653,4.6683,4513.7,4513.6,0.8324]
[1755455680554,1.4605,4513.7,4513.6,0.8324]
[1755455681649,0.5103,4514.7,4514.0,0.5845]
[1755455681855,1.0343,4514.7,4514.6,0.8324]
[1755455682257,1.4605,4514.7,4514.6,0.5845]
[1755455683857,1.4605,4514.7,4514.6,0.1615]
[1755455684655,1.4605,4514.7,4514.6,0.42]
[1755455685156,1.4605,4514.7,4514.6,0.5845]
[1755455688060,1.0343,4514.7,4514.6,0.8253]
[1755455688561,1.0343,4514.7,4514.3,20.469]
[1755455688756,1.4275,4514.4,4514.3,21.0429]
[1755455692967,0.6565,4514.4,4514.3,21.2837]
[1755455693873,0.2429,4514.4,4514.3,21.2837]
[1755455694865,0.2429,4514.6,4514.4,0.2444]
[1755455695064,0.2429,4514.6,4514.3,20.469]
[1755455695065,0.2429,4514.6,4514.5,0.3295]
[1755455695265,1.0243,4514.6,4514.5,0.3295]
[1755455695670,1.1857,4514.6,4514.5,0.3295]
[1755455695871,1.4275,4514.6,4514.5,0.5739]
[1755455700374,1.1857,4514.6,4514.5,0.8147]
[1755455700971,0.2429,4514.6,4514.5,0.8147]
[1755455701167,0.6107,4514.8,4514.6,0.4852]
[1755455701372,3.2078,4515.3,4514.6,0.4852]
[1755455701373,3.4507,4515.3,4515.2,0.8147]
[1755455701573,3.8632,4515.8,4515.7,0.3295]
[1755455701872,4.0246,4515.8,4515.7,0.8147]
[1755455702272,4.3935,4515.8,4515.7,21.2627]
[1755455702576,3.6928,4515.8,4515.7,21.2627]
[1755455703275,0.2429,4515.8,4515.7,21.2627]
[1755455703579,0.2429,4516.0,4515.9,0.8147]
[1755455703774,1.0243,4516.0,4515.9,0.8147]
[1755455704078,1.4275,4516.0,4515.9,0.8147]
[1755455704771,1.4275,4516.0,4515.9,0.5739]
[1755455706278,1.4275,4516.0,4515.9,0.4081]
[1755455706575,1.4275,4516.0,4515.9,0.1637]
[1755455706777,1.4275,4516.0,4515.9,0.5739]
[1755455707476,1.4275,4516.0,4515.9,0.8147]
[1755455708786,1.4275,4516.0,4515.9,0.5739]
[1755455713678,1.4275,4516.0,4515.9,0.8147]
[1755455714376,1.0243,4516.0,4515.9,0.8147]
[1755455714678,3.2078,4516.5,4516.1,0.3295]
[1755455714876,0.3429,4516.2,4516.1,0.8147]
[1755455715079,0.1,4516.2,4516.1,0.8147]
[1755455716881,0.3429,4516.2,4516.1,0.8147]
[1755455717884,1.1195,4516.2,4516.1,0.8147]
[1755455718076,1.5432,4516.2,4516.1,0.8147]
[1755455718980,0.5898,4515.9,4515.8,23.6358]
[1755455719280,1.4391,4515.9,4515.8,21.014]
[1755455719472,0.5898,4515.9,4515.3,3.2078]
[1755455719676,0.1221,4516.2,4515.3,3.2078]
[1755455719677,1.4391,4515.4,4515.3,3.2078]
[1755455719872,1.4391,4515.4,4515.3,23.6348]
[1755455720179,1.4391,4515.4,4515.3,24.0491]
[1755455720576,1.4391,4515.4,4515.3,20.8413]
[1755455722086,1.4391,4515.4,4515.3,21.013]
[1755455727577,3.2078,4516.1,4515.3,21.013]
[1755455727784,1.4391,4516.0,4515.9,0.586]
[1755455728086,1.4391,4516.0,4515.9,21.006]
[1755455733188,0.2357,4516.0,4515.9,20.7484]
[1755455733791,0.4167,4514.9,4514.8,35.3535]
[1755455733988,0.363,4515.1,4515.0,0.3284]
[1755455734182,0.363,4515.7,4515.0,0.3284]
[1755455734387,1.4391,4515.6,4515.5,0.3284]
[1755455734589,1.4391,4515.6,4515.5,21.001]
[1755455735893,0.8255,4516.0,4515.9,0.3284]
[1755455736091,1.4391,4516.0,4515.9,0.586]
[1755455736791,0.1,4516.2,4516.1,0.3284]
[1755455736989,0.1,4516.2,4516.1,21.2517]
[1755455737397,0.3357,4516.2,4516.1,21.2517]
[1755455740898,0.7524,4516.2,4516.1,21.2517]
[1755455741105,1.1154,4516.2,4516.1,21.2517]
[1755455742499,1.5391,4516.2,4516.1,20.999]
[1755455743800,1.5391,4516.2,4516.1,21.2517]
[1755455745395,1.2885,4516.2,4516.1,21.2517]
[1755455745600,1.1154,4516.2,4516.1,21.2517]
[1755455747804,1.5401,4516.2,4516.1,21.2517]
[1755455749107,1.2866,4516.2,4516.1,20.999]
[1755455749305,1.5401,4516.2,4516.1,20.999]
[1755455749698,1.5401,4516.2,4516.1,21.2518]
[1755455750605,0.1,4516.2,4516.1,21.2739]
[1755455750800,0.6023,4517.0,4516.9,1.01431]
[1755455751002,0.6023,4517.0,4516.9,21.66571]
[1755455751207,0.4311,4517.0,4516.9,21.66571]
[1755455751402,1.4869,4517.0,4516.9,21.41331]
[1755455753306,1.2334,4517.0,4516.9,21.66571]